fUST/lending_fUST_20241016
["ID","MTS","AMOUNT","RATE_DAILY","PERIOD"]
[340328803,1729050640770,-339.23825334,0.00021773,2]
[340328804,1729050640780,-500.0,0.00021773,2]
[340328805,1729050640790,-500.91211814,0.00021773,2]
[340328806,1729050640799,-500.0,0.00021773,2]
[340328807,1729050640810,-501.05674957,0.00021773,2]
[340328808,1729050640820,-504.00150615,0.00021773,2]
[340328809,1729050640830,-500.51098215,0.00021773,2]
[340328810,1729050640842,-500.0,0.00021773,2]
[340328812,1729050640852,-500.0,0.00021773,2]
[340328814,1729050640861,-585.79150865,0.00021773,2]
[340328816,1729050640872,-407.78922445,0.00021773,2]
[340328818,1729050640881,-500.0,0.00021773,2]
[340328820,1729050640891,-500.0,0.00021773,2]
[340328822,1729050640901,-500.0,0.00021773,2]
[340328824,1729050640911,-316.62839135,0.00021773,2]
[340328826,1729050640921,-501.46359697,0.00021773,2]
[340328828,1729050640932,-500.0,0.00021773,2]
[340328830,1729050640943,-631.33034496,0.00021773,2]
[340328832,1729050640954,-500.0,0.00021773,2]
[340328835,1729050640966,-500.0,0.00021773,2]
[340328837,1729050640975,-500.0,0.00021773,2]
[340328839,1729050640985,-500.0,0.00021773,2]
[340328841,1729050640995,-500.0,0.00021773,2]
[340328843,1729050641005,-500.0,0.00021773,2]
[340328845,1729050641015,-502.22263542,0.00021773,2]
[340328847,1729050641025,-500.0,0.00021773,2]
[340328849,1729050641035,-502.67836408,0.00021773,2]
[340328851,1729050641045,-1286.80167912,0.0002178,3]
[340328853,1729050641054,-1930.20251868,0.0002179,3]
[340328855,1729050641064,-151.0,0.0002179,2]
[340328857,1729050641073,-569140.04674759,0.000218,2]
[340330173,1729050730615,5000.0,0.0002,2]
[340330178,1729050977997,167.81748924,0.0002,14]
[340330180,1729051125667,160.026379,0.00019906,2]
[340330181,1729051212558,382.978212,0.00019536,2]
[340330184,1729051239564,24900.0,0.00019536,2]
[340330186,1729051415140,201.58956268,0.00019995,2]
[340330187,1729051426558,165.387841,0.00019293,2]
[340330190,1729051547921,1000.02,0.00027,60]
[340330192,1729051609774,651.6417264,0.00019552,2]
[340330195,1729051639760,300.0,0.00027,60]
[340330196,1729051639931,543.93862837,0.00027,60]
[340330197,1729051641438,300.0,0.00027,60]
[340330198,1729051641602,550.66183715,0.00027,60]
[340330199,1729051644713,1120.611426,0.00019566,2]
[340330200,1729051647081,300.0,0.00027,60]
[340330201,1729051647288,300.0,0.00027,60]
[340330202,1729051647468,300.0,0.00027,60]
[340330203,1729051647664,300.0,0.00027,60]
[340330204,1729051647841,300.0,0.00027,60]
[340330205,1729051648021,300.0,0.00027,60]
[340330206,1729051648199,300.0,0.00027,60]
[340330207,1729051648390,300.0,0.00027,60]
[340330208,1729051648587,300.0,0.00027,60]
[340330209,1729051648764,300.0,0.00027,60]
[340330210,1729051648959,300.0,0.00027,60]
[340330211,1729051649138,300.0,0.00027,60]
[340330212,1729051649376,300.0,0.00027,60]
[340330213,1729051649529,300.0,0.00027,60]
[340330214,1729051649946,300.0,0.00027,60]
[340330215,1729051650116,300.0,0.00027,60]
[340330216,1729051650276,300.0,0.00027,60]
[340330217,1729051650664,300.0,0.00027,60]
[340330218,1729051650906,300.0,0.00027,60]
[340330219,1729051651284,300.0,0.00027,60]
[340330220,1729051651464,300.0,0.00027,60]
[340330221,1729051651659,300.0,0.00027,60]
[340330222,1729051651853,300.0,0.00027,60]
[340330223,1729051652352,300.0,0.00027,60]
[340330224,1729051652683,300.0,0.00027,60]
[340330225,1729051652881,300.0,0.00027,60]
[340330226,1729051653351,300.0,0.00027,60]
[340330227,1729051653521,300.0,0.00027,60]
[340330228,1729051653718,300.0,0.00027,60]
[340330229,1729051653910,300.0,0.00027,60]
[340330230,1729051654323,300.0,0.00027,60]
[340330231,1729051654698,3000.0,0.00019545,2]
[340330232,1729051654772,300.0,0.00027,60]
[340330233,1729051654959,300.0,0.00027,60]
[340330234,1729051655153,300.0,0.00027,60]
[340330235,1729051655351,300.0,0.00027,60]
[340330236,1729051655530,300.0,0.00027,60]
[340330237,1729051655719,300.0,0.00027,60]
[340330238,1729051655968,300.0,0.00027,60]
[340330239,1729051656140,300.0,0.00027,60]
[340330240,1729051656341,300.0,0.00027,60]
[340330241,1729051656536,526.54338377,0.00027,60]
[340330242,1729051660616,150.0,0.00027,60]
[340330243,1729051675176,159.944785,0.00019816,2]
[340330244,1729051675401,159.944785,0.00019909,2]
[340330246,1729051757571,18671.6249734,0.0001952,2]
[340330377,1729051838573,-159.944785,0.00020003,2]
[340330379,1729051838583,-159.944785,0.00020097,2]
[340330381,1729051838593,-159.944785,0.00020191,2]
[340330383,1729051838604,-1120.611426,0.00020251,2]
[340330385,1729051838615,-159.944785,0.00020285,2]
[340330387,1729051838626,-159.944785,0.00020379,2]
[340330390,1729051838636,-159.944785,0.00020473,2]
[340330392,1729051838648,-159.944785,0.00020566,2]
[340330394,1729051838657,-159.944785,0.0002066,2]
[340330396,1729051838667,-3561.3816172,0.00020753,2]
[340330398,1729051838676,-300.0,0.00020753,2]
[340330400,1729051838685,-300.0,0.00020753,2]
[340330402,1729051838694,-21905.53881576,0.00020753,2]
[340330404,1729051838703,-159.944785,0.00020754,2]
[340330406,1729051838713,-312.92606524,0.00020758,2]
[340330408,1729051838722,-154.911,0.00020758,2]
[340330410,1729051838731,-11062.58608882,0.00020758,2]
[340330443,1729051840448,-9492.63405048,0.00020758,2]
[340330444,1729051840458,-159.944785,0.00020848,2]
[340330445,1729051840470,-1120.611426,0.00020936,2]
[340330446,1729051840479,-210.3259639,0.00020978,2]
[340330447,1729051840491,-419.56403,0.00020978,2]
[340330448,1729051840501,-452.6958895,0.00020978,2]
[340330449,1729051840510,-1000.0,0.00021,2]
[340330450,1729051840520,-210.3259639,0.00021178,2]
[340330451,1729051840530,-6171.8309641,0.00021186,2]
[340330452,1729051840539,-153.0,0.00021452,2]
[340330453,1729051840548,-153.0,0.00021452,2]
[340330454,1729051840557,-153.0,0.00021452,2]
[340330456,1729051840567,-153.0,0.00021452,2]
[340330458,1729051840577,-6171.83096411,0.00021574,2]
[340330459,1729051840586,-1000.0,0.00021597,2]
[340330460,1729051840596,-632.25,0.00021668,3]
[340330461,1729051840605,-500.0,0.00021677,2]
[340330462,1729051840614,-235.90182301,0.00021677,2]
[340330463,1729051840623,-71359.8453311,0.00021678,3]
[340330464,1729051840634,-47573.2302207,0.00021688,3]
[340330465,1729051840647,-6291.91482069,0.00021697,2]
[340330466,1729051840656,-35630.70024578,0.00021698,2]
[340330467,1729051840665,-65956.90600601,0.00021698,2]
[340330468,1729051840675,-1046.70984591,0.000217,2]
[340330469,1729051840684,-302.15790445,0.00021758,2]
[340330470,1729051840694,-500.0,0.00021758,2]
[340330471,1729051840704,-623.82505094,0.00021758,2]
[340330472,1729051840714,-328.4147894,0.00021758,2]
[340330473,1729051840723,-291.06228818,0.00021758,2]
[340330474,1729051840868,-281.90730751,0.00021758,2]
[340330475,1729051840878,-23786.6151104,0.00021759,3]
[340330476,1729051840887,-95146.4604415,0.0002176,3]
[340330477,1729051840897,-214.46694674,0.0002176,3]
[340330478,1729051840907,-500.0,0.00021773,2]
[340330479,1729051840918,-500.91211814,0.00021773,2]
[340330480,1729051840929,-500.0,0.00021773,2]
[340330481,1729051840939,-501.05674957,0.00021773,2]
[340330482,1729051840949,-500.51098215,0.00021773,2]
[340330483,1729051840960,-502.43027219,0.00021773,2]
[340330484,1729051840970,-585.79150865,0.00021773,2]
[340330485,1729051840980,-339.23825334,0.00021773,2]
[340330486,1729051840995,-500.0,0.00021773,2]
[340330487,1729051841005,-500.0,0.00021773,2]
[340330488,1729051841014,-501.46359697,0.00021773,2]
[340330489,1729051841024,-631.33034496,0.00021773,2]
[340330490,1729051841034,-500.0,0.00021773,2]
[340330491,1729051841043,-504.00150615,0.00021773,2]
[340330492,1729051841055,-500.0,0.00021773,2]
[340330493,1729051841065,-500.0,0.00021773,2]
[340330494,1729051841074,-500.0,0.00021773,2]
[340330495,1729051841083,-262.4308153,0.00021773,2]
[340330496,1729051841093,-500.0,0.00021773,2]
[340330497,1729051841102,-407.78922445,0.00021773,2]
[340330498,1729051841112,-500.0,0.00021773,2]
[340330499,1729051841121,-500.0,0.00021773,2]
[340330500,1729051841131,-500.0,0.00021773,2]
[340330501,1729051841141,-502.67836408,0.00021773,2]
[340330502,1729051841153,-500.0,0.00021773,2]
[340330503,1729051841163,-500.0,0.00021773,2]
[340330504,1729051841177,-438.34934323,0.00021773,2]
[340330505,1729051841187,-316.62839135,0.00021773,2]
[340330506,1729051841196,-500.0,0.00021773,2]
[340330507,1729051841206,-502.22263542,0.00021773,2]
[340330508,1729051841217,-500.0,0.00021773,2]
[340330509,1729051841226,-500.0,0.00021773,2]
[340330510,1729051841237,-500.0,0.00021773,2]
[340330511,1729051841250,-500.0,0.00021773,2]
[340330512,1729051841260,-500.0,0.00021773,2]
[340330513,1729051841269,-151.0,0.0002179,2]
[340330514,1729051841279,-151.0,0.0002179,2]
[340330515,1729051841288,-2366.835593,0.0002179,2]
[340330516,1729051841298,-2366.835593,0.0002179,2]
[340330517,1729051841308,-614.979523,0.0002179,2]
[340330518,1729051841319,-614.979523,0.0002179,2]
[340330519,1729051841328,-299.97181,0.0002179,2]
[340330520,1729051841337,-299.97181,0.0002179,2]
[340330521,1729051841347,-321.70042011,0.0002179,3]
[340330522,1729051841357,-618186.99736888,0.000218,2]
[340330523,1729051841366,-183.805214,0.000218,2]
[340330524,1729051841376,-183.805214,0.000218,2]
[340330525,1729051841385,-150.112233,0.000218,5]
[340330526,1729051841395,-150.112233,0.000218,5]
[340330527,1729051841405,-197.960472,0.000218,2]
[340330528,1729051841414,-197.960472,0.000218,2]
[340330529,1729051841424,-151.0,0.000218,2]
[340330530,1729051841433,-293.004595,0.000218,2]
[340330531,1729051841443,-151.0,0.000218,2]
[340330532,1729051841452,-156.445738,0.000218,2]
[340330533,1729051841462,-156.445738,0.000218,2]
[340330534,1729051841471,-336.574002,0.000218,2]
[340330535,1729051841480,-151.0,0.000218,2]
[340330536,1729051841491,-336.574002,0.000218,2]
[340330537,1729051841501,-479.490877,0.000218,2]
[340330538,1729051841511,-479.490877,0.000218,2]
[340330539,1729051841520,-314.099061,0.000218,2]
[340330540,1729051841530,-314.099061,0.000218,2]
[340330541,1729051841540,-151.0,0.000218,2]
[340330542,1729051841549,-151.0,0.000218,2]
[340330543,1729051841559,-151.0,0.000218,2]
[340330544,1729051841568,-151.0,0.000218,2]
[340330545,1729051841578,-151.0,0.000218,2]
[340330546,1729051841587,-151.0,0.000218,2]
[340330547,1729051841596,-2366.835593,0.000218,2]
[340330548,1729051841606,-2366.835593,0.000218,2]
[340330549,1729051841617,-151.0,0.000218,2]
[340330550,1729051841626,-152.382848,0.000218,2]
[340330551,1729051841635,-614.979523,0.000218,2]
[340330552,1729051841644,-614.979523,0.000218,2]
[340330553,1729051841654,-245.56576801,0.000218,2]
[340331472,1729051852149,300.0,0.00027,60]
[340331491,1729051852326,300.0,0.00027,60]
[340331515,1729051852536,359.59962882,0.00027,60]
[340331556,1729051853041,300.0,0.00027,60]
[340332340,1729051906820,152.0,0.00027,120]
[340332348,1729052250184,160.426363,0.00019332,2]
[340332356,1729052620446,500.0,0.00027,60]
[340332357,1729052622370,500.0,0.00027,60]
[340332358,1729052623392,150.0,0.00027,60]
[340332359,1729052624805,150.0,0.00027,60]
[340332360,1729052626682,500.0,0.00027,60]
[340332361,1729052628121,206.3516092,0.00027,60]
[340332362,1729052628785,206.45983104,0.00027,60]
[340332366,1729052706372,659.895337,0.00019446,2]
[340332367,1729052742833,3000.0,0.00019523,2]
[340332369,1729052751594,925.5166088,0.00019825,2]
[340332370,1729052817918,166.666666,0.00019791,2]
[340332377,1729052818416,166.666666,0.00019865,2]
[340332378,1729052818484,166.666666,0.00019938,2]
[340332380,1729052852934,150.0,0.00027,60]
[340332381,1729052854907,150.0,0.00027,60]
[340332382,1729052856754,150.0,0.00027,60]
[340332383,1729052857178,403.404219,0.0002,2]
[340332384,1729052857840,150.23618743,0.00027,60]
[340332385,1729052859842,500.0,0.00027,60]
[340332387,1729052978575,152.0,0.00027,120]
[340332388,1729053015221,160.364944,0.00018487,2]
[340332389,1729053015268,160.364944,0.0001946,2]
[340332521,1729053038887,-166.666666,0.00020012,2]
[340332522,1729053038897,-166.666666,0.00020086,2]
[340332523,1729053038906,-300.0,0.00020095,2]
[340332524,1729053038916,-218.16489643,0.00020095,2]
[340332540,1729053040726,-81.83510357,0.00020095,2]
[340332541,1729053040737,-24900.0,0.00020096,2]
[340332542,1729053040747,-659.895337,0.00020131,2]
[340332543,1729053040759,-574.467319,0.00020158,2]
[340332544,1729053040770,-166.666666,0.00020159,2]
[340332545,1729053040782,-166.666666,0.00020233,2]
[340332546,1729053040792,-166.666666,0.00020307,2]
[340332547,1729053040806,-166.666666,0.0002038,2]
[340332548,1729053040816,-160.364944,0.00020433,2]
[340332549,1729053040825,-168.068331,0.0002045,2]
[340332550,1729053040835,-166.666666,0.00020454,2]
[340332551,1729053040844,-166.666666,0.00020528,2]
[340332552,1729053040853,-166.666666,0.00020601,2]
[340332553,1729053040863,-166.666666,0.00020675,2]
[340332554,1729053040874,-166.666666,0.00020749,2]
[340332555,1729053040885,-659.895337,0.00020816,2]
[340332556,1729053040895,-166.666666,0.00020822,2]
[340332557,1729053040905,-3270.431908,0.00021193,2]
[340332558,1729053040916,-481.54291812,0.00021277,2]
[340332559,1729053040926,-153.0,0.00021293,2]
[340332560,1729053040936,-153.0,0.00021293,2]
[340332561,1729053040945,-153.0,0.00021293,2]
[340332562,1729053040955,-153.0,0.00021293,2]
[340332563,1729053040964,-306.0,0.00021293,2]
[340332564,1729053040973,-153.0,0.00021293,2]
[340332565,1729053040982,-153.0,0.00021293,2]
[340332566,1729053040992,-153.0,0.00021293,2]
[340332567,1729053041001,-208.61737683,0.00021293,2]
[340332568,1729053041011,-6742.70712753,0.00021345,2]
[340332569,1729053041020,-153.0,0.0002143,2]
[340332570,1729053041031,-306.0,0.0002143,2]
[340332571,1729053041041,-324.7833813,0.0002143,2]
[340332572,1729053041051,-414.2223668,0.00021452,2]
[340332573,1729053041062,-414.2223668,0.00021452,2]
[340332574,1729053041072,-827.250164,0.00021452,2]
[340332575,1729053041081,-414.2223668,0.00021452,2]
[340332576,1729053041090,-6742.70712753,0.00021476,2]
[340332577,1729053041100,-153.0,0.00021556,2]
[340332578,1729053041110,-6634.2,0.00021698,2]
[340332579,1729053041119,-1000.0,0.00021797,2]
[340332580,1729053041129,-150.01,0.00021799,2]
[340332581,1729053041138,-2880.81189396,0.00021799,2]
[340332582,1729053041148,-299.97181,0.000218,2]
[340332583,1729053041157,-299.97181,0.000218,2]
[340332584,1729053041167,-218.44009,0.000218,3]
[340332585,1729053041177,-150.112233,0.000218,4]
[340332586,1729053041186,-449.766951,0.000218,2]
[340332587,1729053041197,-715.781534,0.000218,2]
[340332588,1729053041207,-449.766951,0.000218,2]
[340332589,1729053041216,-248.918877,0.000218,2]
[340332590,1729053041225,-715.781534,0.000218,2]
[340332591,1729053041235,-248.918877,0.000218,2]
[340332592,1729053041245,-151.0,0.000218,2]
[340332593,1729053041254,-484.588411,0.000218,2]
[340332594,1729053041263,-484.588411,0.000218,2]
[340332595,1729053041273,-185.063469,0.000218,2]
[340332596,1729053041282,-185.063469,0.000218,2]
[340332597,1729053041291,-293.0810405,0.00021808,2]
[340332598,1729053041301,-942.0388614,0.00021817,2]
[340332599,1729053041310,-153.0,0.00021868,2]
[340332600,1729053041321,-153.0,0.00021868,2]
[340332601,1729053041331,-200.0,0.0002187,5]
[340332602,1729053041343,-14662.5584406,0.00021877,3]
[340332603,1729053041352,-3540.17135407,0.00021877,3]
[340332647,1729053043633,-3808.17633536,0.00021877,3]
[340332648,1729053043644,-266.94,0.00021877,3]
[340332649,1729053043653,-800.86,0.00021877,3]
[340332650,1729053043663,-420.0,0.00021879,2]
[340332651,1729053043672,-14662.5584406,0.00021887,3]
[340332652,1729053043681,-7348.34768943,0.00021887,3]
[340332653,1729053043691,-58650.2337623,0.00021897,3]
[340332654,1729053043702,-29393.3907577,0.00021897,3]
[340332655,1729053043711,-150.112233,0.000219,3]
[340332656,1729053043721,-150.112233,0.000219,5]
[340332657,1729053043730,-150.112233,0.000219,4]
[340332658,1729053043740,-150.112233,0.000219,5]
[340332659,1729053043749,-172.460368,0.000219,4]
[340332660,1729053043758,-547.33511525,0.00021906,2]
[340332661,1729053043767,-211.51053312,0.00021906,2]
[340332662,1729053043777,-229.89035258,0.00021906,2]
[340332663,1729053043787,-436.67753565,0.00021906,2]
[340332664,1729053043799,-203.74360173,0.00021906,2]
[340332666,1729053043809,-40787.97180558,0.00021907,3]
[340332695,1729053104005,255.79556755,0.00027,60]
[340332696,1729053109071,150.0,0.00027,60]
[340332697,1729053111549,150.0,0.00027,60]
[340332699,1729053258538,35405.0,0.00027,60]
[340332700,1729053330162,150.0,0.00027,60]
[340332701,1729053333205,150.0,0.00027,60]
[340332702,1729053547129,150.0,0.00027,60]
[340332703,1729053859445,175.639852,0.00019906,2]
[340332705,1729053923997,24880.0,0.00019698,2]
[340332708,1729054046668,153.0,0.0002424,120]
[340332842,1729054239155,-190.9054643,0.00020209,2]
[340332843,1729054239167,-809.1381281,0.00020227,2]
[340332844,1729054239177,-91.00294957,0.00020252,2]
[340332855,1729054240791,-84.63690243,0.00020252,2]
[340332856,1729054240805,-287.23366,0.0002029,2]
[340332857,1729054240814,-165.387841,0.00020553,2]
[340332858,1729054240824,-175.639852,0.00020598,2]
[340332859,1729054240833,-175.639852,0.00020943,2]
[340332860,1729054240842,-300.0,0.00020999,2]
[340332861,1729054240851,-300.0,0.00020999,2]
[340332862,1729054240861,-5000.0,0.00021,2]
[340332863,1729054240869,-153.0,0.00021293,2]
[340332864,1729054240879,-153.0,0.000215,2]
[340332865,1729054240888,-153.0,0.000215,2]
[340332866,1729054240899,-827.2427388,0.000215,2]
[340332867,1729054240908,-414.3746803,0.000215,2]
[340332868,1729054240918,-153.0,0.000215,2]
[340332869,1729054240929,-153.0,0.000215,2]
[340332870,1729054240939,-153.0,0.000215,2]
[340332871,1729054240948,-153.0,0.000215,2]
[340332872,1729054240958,-153.0,0.000215,2]
[340332873,1729054240967,-1091.04654197,0.00021558,2]
[340332874,1729054240977,-153.0,0.000216,2]
[340332875,1729054240986,-153.0,0.000216,2]
[340332876,1729054240996,-156.555531,0.000216,2]
[340332877,1729054241006,-169.75569243,0.0002168,2]
[340332878,1729054241015,-2861.6279195,0.00021689,2]
[340332879,1729054241024,-153.0,0.000217,2]
[340332880,1729054241033,-153.0,0.000217,2]
[340332881,1729054241043,-153.0,0.000217,2]
[340332882,1729054241052,-153.0,0.000217,2]
[340332883,1729054241062,-153.0,0.000217,2]
[340332884,1729054241072,-1000.0,0.000217,2]
[340332885,1729054241083,-942.0388614,0.000217,2]
[340332886,1729054241095,-200.0,0.0002171,5]
[340332887,1729054241105,-368.5646219,0.00021773,2]
[340332888,1729054241115,-500.0,0.00021773,2]
[340332889,1729054241124,-438.34934323,0.00021773,2]
[340332890,1729054241134,-500.0,0.00021773,2]
[340332891,1729054241144,-500.0,0.00021773,2]
[340332892,1729054241155,-500.0,0.00021773,2]
[340332893,1729054241164,-502.43027219,0.00021773,2]
[340332894,1729054241173,-500.0,0.00021773,2]
[340332895,1729054241185,-500.91211814,0.00021773,2]
[340332896,1729054241195,-500.0,0.00021773,2]
[340332897,1729054241206,-339.23825334,0.00021773,2]
[340332898,1729054241216,-500.0,0.00021773,2]
[340332899,1729054241225,-501.05674957,0.00021773,2]
[340332900,1729054241234,-504.00150615,0.00021773,2]
[340332901,1729054241246,-500.51098215,0.00021773,2]
[340332902,1729054241255,-500.0,0.00021773,2]
[340332903,1729054241265,-500.0,0.00021773,2]
[340332904,1729054241275,-316.62839135,0.00021773,2]
[340332905,1729054241286,-500.0,0.00021773,2]
[340332906,1729054241297,-585.79150865,0.00021773,2]
[340332907,1729054241312,-500.0,0.00021773,2]
[340332908,1729054241322,-407.78922445,0.00021773,2]
[340332909,1729054241333,-500.0,0.00021773,2]
[340332910,1729054241344,-500.0,0.00021773,2]
[340332911,1729054241355,-500.0,0.00021773,2]
[340332912,1729054241365,-501.46359697,0.00021773,2]
[340332913,1729054241377,-502.22263542,0.00021773,2]
[340332914,1729054241387,-500.0,0.00021773,2]
[340332915,1729054241397,-500.0,0.00021773,2]
[340332916,1729054241407,-502.67836408,0.00021773,2]
[340332917,1729054241417,-631.33034496,0.00021773,2]
[340332918,1729054241427,-500.0,0.00021773,2]
[340332919,1729054241438,-500.0,0.00021779,2]
[340332920,1729054241447,-500.0,0.00021779,2]
[340332921,1729054241457,-370.51560138,0.00021779,2]
[340332922,1729054241467,-500.0,0.00021779,2]
[340332923,1729054241477,-500.0,0.00021779,2]
[340332924,1729054241488,-500.0,0.00021779,2]
[340332925,1729054241498,-500.0,0.00021779,2]
[340332926,1729054241507,-500.0,0.00021779,2]
[340332927,1729054241517,-500.0,0.00021779,2]
[340332928,1729054241529,-500.0,0.00021779,2]
[340332929,1729054241542,-500.0,0.00021779,2]
[340332930,1729054241551,-500.0,0.00021779,2]
[340332931,1729054241561,-500.0,0.00021779,2]
[340332932,1729054241571,-500.0,0.00021779,2]
[340332933,1729054241580,-500.0,0.00021779,2]
[340332934,1729054241589,-500.0,0.00021779,2]
[340332935,1729054241598,-500.0,0.00021779,2]
[340332936,1729054241608,-500.0,0.00021779,2]
[340332937,1729054241617,-500.0,0.00021779,2]
[340332938,1729054241627,-500.0,0.00021779,2]
[340332939,1729054241636,-500.0,0.00021779,2]
[340332940,1729054241645,-500.0,0.00021779,2]
[340332941,1729054241655,-500.0,0.00021779,2]
[340332942,1729054241665,-500.0,0.00021779,2]
[340332943,1729054241675,-500.0,0.00021779,2]
[340332944,1729054241685,-184.34049106,0.00021779,2]
[340332945,1729054241694,-500.0,0.00021779,2]
[340332946,1729054241703,-500.0,0.00021779,2]
[340332947,1729054241712,-500.0,0.00021779,2]
[340332948,1729054241721,-500.0,0.00021779,2]
[340332949,1729054241730,-500.0,0.00021779,2]
[340332950,1729054241739,-500.0,0.00021779,2]
[340332951,1729054241748,-500.0,0.00021779,2]
[340332952,1729054241758,-500.0,0.00021779,2]
[340332953,1729054241767,-500.0,0.00021779,2]
[340332954,1729054241777,-500.0,0.00021779,2]
[340332955,1729054241786,-500.0,0.00021779,2]
[340332956,1729054241795,-500.0,0.00021779,2]
[340332957,1729054241804,-500.0,0.00021779,2]
[340332958,1729054241814,-500.0,0.00021779,2]
[340332959,1729054241824,-500.0,0.00021779,2]
[340332960,1729054241833,-500.0,0.00021779,2]
[340332961,1729054241843,-500.0,0.00021779,2]
[340332962,1729054241854,-500.0,0.00021779,2]
[340332963,1729054241864,-500.0,0.00021779,2]
[340332964,1729054241875,-500.0,0.00021779,2]
[340332965,1729054241885,-500.0,0.00021779,2]
[340332966,1729054241894,-160.58299256,0.00021779,2]
[340332967,1729054241904,-500.0,0.00021779,2]
[340332968,1729054241914,-500.0,0.00021779,2]
[340332969,1729054241925,-500.0,0.00021779,2]
[340332970,1729054241935,-500.0,0.00021779,2]
[340332971,1729054241946,-500.0,0.00021779,2]
[340332972,1729054241956,-500.0,0.00021779,2]
[340332973,1729054242054,-500.0,0.00021779,2]
[340332974,1729054242063,-500.0,0.00021779,2]
[340332975,1729054242072,-500.0,0.00021779,2]
[340332976,1729054242081,-500.0,0.00021779,2]
[340332977,1729054242090,-500.0,0.00021779,2]
[340332978,1729054242099,-500.0,0.00021779,2]
[340332979,1729054242108,-500.0,0.00021779,2]
[340332980,1729054242118,-500.0,0.00021779,2]
[340332981,1729054242127,-500.0,0.00021779,2]
[340332982,1729054242136,-500.0,0.00021779,2]
[340332983,1729054242146,-500.0,0.00021779,2]
[340332984,1729054242155,-500.0,0.00021779,2]
[340332985,1729054242165,-500.0,0.00021779,2]
[340332986,1729054242175,-500.0,0.00021779,2]
[340332987,1729054242186,-533.88,0.0002178,3]
[340332988,1729054242197,-89669.1272808,0.0002178,3]
[340332989,1729054242207,-60109.5054018,0.0002178,3]
[340332990,1729054242217,-73467.1732688,0.0002179,3]
[340332991,1729054242227,-219.9915092,0.00021799,2]
[340332992,1729054242236,-248.2233807,0.00021799,2]
[340332993,1729054242246,-590.98335862,0.00021799,2]
[340332994,1729054242256,-471.50118723,0.00021799,2]
[340332995,1729054242267,-228.3778288,0.00021799,2]
[340332996,1729054242278,-7425.578344,0.000218,2]
[340332997,1729054242288,-153.0,0.000218,2]
[340332998,1729054242298,-153.0,0.000218,2]
[340332999,1729054242310,-153.0,0.000218,2]
[340333000,1729054242320,-642878.28458539,0.000218,2]
[340333027,1729054303092,923.7560613,0.0001,2]
[340333030,1729054836897,6231.86,0.0002,2]
[340333033,1729054909254,177.91632144,0.0002,2]
[340333034,1729054933060,150.0,0.00027,60]
[340333035,1729054933759,150.0,0.00027,60]
[340333038,1729055002155,173.726534,0.00019999,2]
[340333250,1729055438192,-176.051567,0.00020067,2]
[340333251,1729055438202,-176.051567,0.00020168,2]
[340333252,1729055438212,-311.10679383,0.00020302,2]